Cogmind - Beta 16.1 @@@ ROGUE MODE // 2026.03.14 @ 22:58:25 Player: Ragnakor Result: Destroyed by S-27 Virus with Autogun Performance ------------- Evolutions (3) 1500 Regions Visited (10) 2000 Robots Destroyed (56) 280 Value Destroyed (1184) 1184 Prototype IDs (8) 160 Alien Tech Used (0) 0 Bonus (639) 639 TOTAL SCORE: 5763 Bonus ------- Follower Combat Kills 239 Entered Garrisons 400 Cogmind --------- Core Integrity 0/700 Matter 226/300 Energy 100/100 System Corruption 1% Temperature Cool (0) Movement Core (50) Location -7/Garrison Parts ------- > --- POWER (1) -------- (None) > --- PROPULSION (4) --- (None) > --- UTILITY (6) ------ Visual Processing Unit > --- WEAPON (2) ------- (None) > --- INVENTORY (5) ---- Aluminum Leg Improved Carbon-fiber Leg Remote Datajack Impact Mace Katana Peak State ------------ > --- POWER ------------ Micro Nuclear Core > --- PROPULSION ------- Cesium-ion Thruster Improved VTOL Module Improved VTOL Module > --- UTILITY ---------- Small Storage Unit Visual Processing Unit Improved Targeting Computer Transmission Jammer EM Disruption Field > --- WEAPON ----------- Impact Mace Impact Mace > --- INVENTORY -------- Aluminum Leg Aluminum Leg Experimental Sensor Array Reaction Control System Heavy Particle Gun Katana [Rating: 40] Favorites ----------- Power Light Nuclear Core Engine Light Ion Engine Power Core Light Nuclear Core Propulsion Aluminum Leg Leg Aluminum Leg Hover Unit Improved Airjet Flight Unit Flight Unit Utility Small Storage Unit Device Improved Terrain Scanner Storage Small Storage Unit Processor Visual Processing Unit Weapon Light Cannon Energy Gun Heavy Particle Gun Energy Cannon EM Pulse Cannon Ballistic Gun Assault Rifle Ballistic Cannon Light Cannon Launcher Rocket Launcher Impact Weapon Impact Mace Slashing Weapon Katana Special Melee Weapon Datajack Build | -11 -10 -10 -9 -9 -8 -8 -7 -7 -7 -7 ------- Run | Yrd Mat Min Mat Min Mat Sto Fac Gar Fac Gar Slots Evolved 6 | . . . 2 . 2 . 2 . . . Power . | . . . . . . . . . . . Propulsion 2 | . . . 2 . . . . . . . Utility 4 | . . . . . 2 . 2 . . . Weapon . | . . . . . . . . . . . Parts Attached 63 | 7 8 3 7 1 16 5 13 . 2 1 Power 11 | 1 2 1 1 . 4 1 . . 1 . Engine 9 | 1 1 1 1 . 4 1 . . . . Core 2 | . 1 . . . . . . . 1 . Reactor . | . . . . . . . . . . . Propulsion 25 | 2 4 1 4 1 7 . 5 . . 1 Treads . | . . . . . . . . . . . Leg 7 | 2 4 1 . . . . . . . . Wheel . | . . . . . . . . . . . Hover 1 | . . . . . . . 1 . . . Flight 17 | . . . 4 1 7 . 4 . . 1 Utility 12 | 2 . . . . 1 4 4 . 1 . Device 6 | 1 . . . . . 2 3 . . . Storage 2 | 1 . . . . . . 1 . . . Processor 4 | . . . . . 1 2 . . 1 . Hackware . | . . . . . . . . . . . Protection . | . . . . . . . . . . . Artifact . | . . . . . . . . . . . Weapon 15 | 2 2 1 2 . 4 . 4 . . . Energy Gun 1 | . . . . . 1 . . . . . Energy Cannon 2 | . . . 1 . 1 . . . . . Ballistic Gun 2 | 2 . . . . . . . . . . Ballistic Cannon 2 | . 2 . . . . . . . . . Launcher 1 | . . 1 . . . . . . . . Special Weapon . | . . . . . . . . . . . Impact Weapon 3 | . . . . . . . 3 . . . Slashing Weapon 2 | . . . . . 2 . . . . . Piercing Weapon . | . . . . . . . . . . . Special Melee Weapon 2 | . . . 1 . . . 1 . . . Unidentified Prototypes 7 | . . . 2 . 2 . 3 . . . Parts Lost 25 | . . 1 1 . 11 1 1 2 1 7 Power 3 | . . . . . 1 . 1 1 . . Propulsion 12 | . . . . . 7 . . 1 . 4 Utility 6 | . . . . . 1 1 . . 1 3 Weapon 4 | . . 1 1 . 2 . . . . . Highest Loss Streak 7 | . . 1 1 . 7 1 1 2 1 7 To Critical Strikes . | . . . . . . . . . . . Average Backups 7 | 1 7 7 5 6 7 7 7 7 6 6 Power 1 | . 1 1 2 3 2 2 1 1 . . Propulsion 3 | . 4 4 2 2 2 2 2 2 2 2 Utility . | . . . 1 1 1 1 2 2 1 . Weapon 1 | . . . . . 1 2 2 2 2 2 Tool/Special . | . . . . . . . . . . . Unused Backups 5 | . 1 1 1 . . . . . 1 1 Power 1 | . . . 1 . . . . . . . Propulsion 3 | . 1 1 . . . . . . . 1 Utility 1 | . . . . . . . . . 1 . Weapon . | . . . . . . . . . . . Tool/Special . | . . . . . . . . . . . Average Slot Usage (%) 90 | . 99 99 94 100 76 72 74 78 74 46 Engine 6 | . 5 6 11 11 8 9 7 3 1 . Core 5 | . 7 7 . . . . . . 4 6 Leg 16 | . 28 28 . . . . . . . . Flight 13 | . . . 42 44 33 28 26 28 23 16 Device 11 | . 14 14 9 11 4 2 5 15 13 3 Storage 11 | . 14 14 11 11 9 9 7 7 7 3 Processor 2 | . . . . . 7 12 14 7 7 7 Ballistic Gun 3 | . 3 5 11 11 1 . . . . . Ballistic Cannon 11 | . 24 12 . . . . . . . . Launcher 2 | . . 9 4 11 2 . . . . . Impact Weapon 1 | . . . . . . . 2 15 15 7 Slashing Weapon 1 | . . . . . 6 9 6 . . . Peak Build Rating 40 | 9 11 13 16 15 21 28 37 37 40 34 Average Rating 14 | 5 10 11 13 15 17 20 26 35 36 21 On Entrance 18 | . 9 11 13 15 15 21 19 37 34 34 Avg Prop Armor Cover (%) 6 | . . . . . . . 6 . . . Naked Turns . | . . . . . . . . . . . Heaviest Build 21 | 15 17 18 20 20 20 13 16 16 21 18 Greatest Support 25 | 20 20 20 20 20 20 13 25 19 16 16 Greatest Overweight (x) 1 | . . . . . 1 1 1 . 1 1 Average Overweight (x) . | . . . . . . . . . . . Largest Inventory Capacity 30 | 8 8 8 8 8 8 8 30 8 8 8 Average Capacity 7 | 6 8 8 8 8 8 8 8 8 8 6 Most Carried 8 | 2 8 8 7 7 8 8 8 7 7 8 Average Carried 7 | 1 7 7 5 6 7 7 7 7 6 5 Final Capacity 8 | 8 8 8 8 8 8 8 8 8 8 5 Final Carried 8 | 2 8 7 6 7 7 8 7 7 7 5 Class Distribution -------------------- 36% | Mutant 34% | Scavenger-Mutant 26% | Sprinter Dominant Class ---------------- Mutant | -10/Materials Scavenger-Mutant | -10/Mines Sprinter | -9/Materials Sprinter | -9/Mines Sprinter | -8/Materials Sprinter | -8/Storage Sprinter | -7/Factory Sprinter | -7/Garrison Mutant | -7/Factory Mutant | -7/Garrison Resources | -11 -10 -10 -9 -9 -8 -8 -7 -7 -7 -7 ----------- Run | Yrd Mat Min Mat Min Mat Sto Fac Gar Fac Gar Matter Collected 1841 | 209 500 426 198 21 149 165 56 . 32 85 Remotely . | . . . . . . . . . . . Salvage Created 1251 | 19 392 276 118 65 188 105 56 . 32 . Parts 110 | 4 35 24 6 12 19 5 2 . 3 . Haulers Intercepted 6 | . 2 . 2 . 1 . 1 . . . Recyclers Shooed 2 | . . 1 . . . . . . 1 . Parts Field Recycled . | . . . . . . . . . . . Retrieved Matter . | . . . . . . . . . . . Parts Self-Destructed . | . . . . . . . . . . . Prevented . | . . . . . . . . . . . Parts Restored . | . . . . . . . . . . . Kills | -11 -10 -10 -9 -9 -8 -8 -7 -7 -7 -7 ------- Run | Yrd Mat Min Mat Min Mat Sto Fac Gar Fac Gar Combat Hostiles Destroyed 39 | . 11 12 2 6 6 1 . . 1 . Melee 3 | . . . . . 1 1 . . 1 . Guns 4 | . . 1 1 2 . . . . . . Cannons 17 | . 11 5 . . 1 . . . . . AOE 14 | . . 6 1 4 3 . . . . . Classes Destroyed 13 | 1 5 4 . . 2 . . . 1 . Worker 2 | . . 1 1 . . . . . . . Tunneler 2 | 1 . . . . 1 . . . . . Hauler 6 | . 2 . 2 . 1 . 1 . . . Recycler 1 | . . 1 . . . . . . . . Operator 5 | . 4 . . . . 1 . . . . Watcher 4 | . 2 . 1 . . 1 . . . . Swarmer 18 | . 3 3 2 6 4 . . . . . Cutter 1 | . . . . . 1 . . . . . Grunt 12 | . 8 4 . . . . . . . . Sentry 3 | . . 2 . . . 1 . . . . Hunter 1 | . . . . . 1 . . . . . Programmer 1 | . . . . . . . . . 1 . Assembled 3 | . . 3 . . . . . . . . Best Kill Streak 7 | 1 7 4 5 3 3 1 1 . 1 . Combat Bots Only 3 | . 3 3 2 3 3 1 . . 1 . Max Kills in Single Turn 3 | 1 1 2 2 3 2 1 1 . 1 . Gunslinging . | . . . . . . . . . . . Exploded 3 | . . 1 1 3 2 . . . . . Melee 1 | . . . . . 1 1 . . 1 . Uniques/NPCs Destroyed . | . . . . . . . . . . . Combat | -11 -10 -10 -9 -9 -8 -8 -7 -7 -7 -7 -------- Run | Yrd Mat Min Mat Min Mat Sto Fac Gar Fac Gar Hostile Shots Fired 430 | . 58 22 26 7 75 30 24 11 14 163 Missed 202 | . 20 8 16 4 32 23 6 3 5 85 Hits 228 | . 38 14 10 3 43 7 18 8 9 78 Projectile 228 | . 38 14 10 3 43 7 18 8 9 78 AOE 1 | . . . . . 1 . . . . . Critical Strikes 5 | . 1 . . . 3 . . . . 1 Part Disruptions 1 | . . . . . . . . . 1 . Damage Taken 3097 | . 366 254 200 24 728 169 209 112 131 904 Core 1159 | . 43 61 102 9 162 78 62 33 29 580 Absorbed by Shields 249 | . . . . . . 4 63 12 . 170 Regen/Repaired (Parts) 96 | . 35 . 5 . . 56 . . . . Core Remaining (%) 71 | 100 . 58 . 72 . 56 . . . . Volleys Fired 129 | 2 50 24 35 4 14 . . . . . Largest 2 | 2 2 2 2 2 2 . . . . . Hottest 88 | 40 60 63 53 53 88 . . . . . Shots Fired 220 | 4 100 46 44 7 19 . . . . . Gun 67 | 4 13 3 35 4 8 . . . . . Cannon 115 | . 87 22 . . 6 . . . . . Launcher 38 | . . 21 9 3 5 . . . . . Special . | . . . . . . . . . . . Kinetic 168 | 4 100 25 35 4 . . . . . . Thermal 8 | . . . . . 8 . . . . . Explosive 38 | . . 21 9 3 5 . . . . . Electromagnetic 6 | . . . . . 6 . . . . . Robot Hit Streak 7 | 1 7 5 7 2 6 . . . . . Robot Miss Streak 5 | 1 5 3 3 2 4 . . . . . Penetration Max . | . . . . . . . . . . . Secondary Targets . | . . . . . . . . . . . Shots Hit Robots 127 | 2 47 21 23 3 13 9 2 2 4 1 Core Hits 76 | 1 22 22 10 6 9 2 1 2 1 . Critical Kills . | . . . . . . . . . . . Critical Parts Destroyed 1 | . . . . . . . . . 1 . Critical Strikes 6 | . 2 1 . . 2 . . . 1 . Burn 1 | . . . . . 1 . . . . . Blast 3 | . 2 1 . . . . . . . . Corrupt 1 | . . . . . 1 . . . . . Smash 1 | . . . . . . . . . 1 . Melee Attacks 45 | . . . 3 . 5 21 7 3 5 1 Impact 9 | . . . . . . . . 3 5 1 Slashing 33 | . . . . . 5 21 7 . . . Piercing . | . . . . . . . . . . . Sneak Attacks 12 | . . . 3 . 2 5 1 . 1 . Combat Hostiles . | . . . . . . . . . . . Follow-up Attacks 2 | . . . . . 1 . . 1 . . Damage Inflicted 4145 | 27 793 728 890 166 561 522 105 77 238 38 Guns 454 | 27 85 14 264 24 40 . . . . . Cannons 1125 | . 706 269 . . 150 . . . . . Explosions 1444 | . . 444 626 142 232 . . . . . Melee 1113 | . . . . . 139 522 105 77 238 32 Ramming 9 | . 2 1 . . . . . . . 6 Kinetic 1389 | 27 791 283 264 24 . . . . . . Thermal 307 | . . . 267 . 40 . . . . . Explosive 1096 | . . 444 278 142 232 . . . . . Electromagnetic 231 | . . . 81 . 150 . . . . . Impact 347 | . . . . . . . . 77 238 32 Slashing 766 | . . . . . 139 522 105 . . . Piercing . | . . . . . . . . . . . Highest Corruption 14 | . . . . . 13 14 . . . 1 Average Corruption 9 | . . . . . 3 13 . . . 1 Corruption Purged . | . . . . . . . . . . . Corruption Blocked . | . . . . . . . . . . . Effects 10 | . . . . . 1 8 . . . 1 Message Errors 2 | . . . . . . 2 . . . . Matter Fused 2 | . . . . . . 1 . . . 1 Heat Flow Errors 1 | . . . . . . 1 . . . . Data Loss (minor) 3 | . . . . . 1 2 . . . . Misdirections 2 | . . . . . . 2 . . . . Overload Shots . | . . . . . . . . . . . Overflow Damage 394 | . 20 28 78 . 45 111 . . 112 . Projectiles 37 | . 20 . . . 17 . . . . . Explosions 106 | . . 28 78 . . . . . . . Melee 251 | . . . . . 28 111 . . 112 . Knockbacks 14 | . 8 2 . . . . . 1 2 1 Impact 3 | . . . . . . . . . 2 1 Kinetic 9 | . 8 1 . . . . . . . . Secondary 2 | . . 1 . . . . . 1 . . Self-Inflicted Damage 181 | . . 68 65 . 45 . . . . 3 Shots 7 | . . 3 2 . 2 . . . . . Rammed 5 | . . . . . . . . . . 5 Targets Rammed 7 | . 1 1 . . . . . . . 5 Kicked 2 | . 1 1 . . . . . . . . Crushed . | . . . . . . . . . . . Highest Temperature 319 | . 60 56 12 . 88 260 319 . . 2 Average Temperature 34 | . 12 17 4 . 42 126 159 . . 2 Received Heat Transfer 808 | . 123 51 66 . 288 36 117 63 . 64 Siege Activations . | . . . . . . . . . . . Martial Activations . | . . . . . . . . . . . Shielding Activations . | . . . . . . . . . . . Robots Disrupted . | . . . . . . . . . . . Combat Hostiles . | . . . . . . . . . . . Robots Corrupted 1 | . . . . . 1 . . . . . Combat Hostiles 1 | . . . . . 1 . . . . . Parts Fried 1 | . . . . . 1 . . . . . Impact Corruptions 2 | . . . . . . . . . 2 . Robots Melted . | . . . . . . . . . . . Combat Hostiles . | . . . . . . . . . . . Parts Melted 1 | . . . . . . 1 . . . . Heat Transferred 348 | . . . 200 . 148 . . . . . Parts Sabotaged . | . . . . . . . . . . . Parts Stolen . | . . . . . . . . . . . Parts Stripped . | . . . . . . . . . . . Power Chain Reactions . | . . . . . . . . . . . Alert | -11 -10 -10 -9 -9 -8 -8 -7 -7 -7 -7 ------- Run | Yrd Mat Min Mat Min Mat Sto Fac Gar Fac Gar Maximum Alert Level 1 | . . . 1 1 1 1 . . . . Low Security (%) 89 | 100 100 100 65 61 41 50 100 100 100 100 Level 1 10 | . . . 34 38 58 49 . . . . Level 2 . | . . . . . . . . . . . Level 3 . | . . . . . . . . . . . Level 4 . | . . . . . . . . . . . Level 5 . | . . . . . . . . . . . High Security . | . . . . . . . . . . . Max Security . | . . . . . . . . . . . Peak Influence 326 | 5 115 167 305 255 299 326 135 74 30 156 Initial 118 | . . 13 31 118 95 102 98 74 28 23 Average 77 | . 41 75 112 206 198 159 97 64 7 77 Influence Increases 2707 | 5 492 334 473 157 369 524 99 . 51 203 Destroy 0b10 Robot/C 860 | . 220 180 40 120 120 160 . . 20 . Destroy 0b10 Robot/NC 105 | 5 40 10 20 . 10 15 5 . . . Destroy Leader 220 | . 88 30 6 10 22 52 2 . 10 . Allied During Kill 126 | . . 5 1 . . 120 . . . . Successful Hack 214 | . 24 . 20 . 11 96 14 . 21 28 Disable Machine 135 | . 45 . 75 . 15 . . . . . Anti-Garrison Action 100 | . . . . . . . . . . 100 Destroy Structure 272 | . . 109 86 27 41 6 3 . . . Partial Spotted 150 | . . . 60 . 30 60 . . . . Lose Combat Pursuer 525 | . 75 . 165 . 120 15 75 . . 75 Influence Decreases 2551 | 5 456 290 248 217 370 552 208 53 71 81 Entered New Map 739 | . . 23 49 187 150 142 118 33 26 11 Time Decay 1194 | 5 412 257 155 30 100 110 80 . 45 . Lost Part 230 | . . 10 . . 110 10 10 20 . 70 Lost Ally 244 | . 10 . 44 . 10 180 . . . . Purge Threat 144 | . 34 . . . . 110 . . . . Squads Dispatched 14 | . 5 . 2 . 1 4 2 . . . Investigation 10 | . 3 . 2 . . 3 2 . . . Extermination . | . . . . . . . . . . . Reinforcement 4 | . 2 . . . 1 1 . . . . Assault . | . . . . . . . . . . . Garrison . | . . . . . . . . . . . Intercept . | . . . . . . . . . . . Searches Triggered . | . . . . . . . . . . . Construction Impeded . | . . . . . . . . . . . Haulers Reinforced . | . . . . . . . . . . . Active Scanning Responses . | . . . . . . . . . . . Cargo Convoy Interrupts . | . . . . . . . . . . . Stealth | -11 -10 -10 -9 -9 -8 -8 -7 -7 -7 -7 --------- Run | Yrd Mat Min Mat Min Mat Sto Fac Gar Fac Gar Distress Signals 7 | . 1 . 1 . 4 1 . . . . Communications Jammed . | . . . . . . . . . . . Distress Signals . | . . . . . . . . . . . Times Spotted 133 | . 24 14 18 5 26 14 7 3 2 20 Peak Tracking Total 17 | . 4 4 6 4 11 5 5 3 2 17 Tactical Retreats 19 | . 4 1 5 . 4 1 2 . . 2 Traps | -11 -10 -10 -9 -9 -8 -8 -7 -7 -7 -7 ------- Run | Yrd Mat Min Mat Min Mat Sto Fac Gar Fac Gar Traps Triggered 15 | . 2 . 2 . 1 . 3 1 . 6 Indirectly . | . . . . . . . . . . . Trap Hack Attempts . | . . . . . . . . . . . Triggered . | . . . . . . . . . . . Disarmed . | . . . . . . . . . . . Reprogrammed . | . . . . . . . . . . . Reused . | . . . . . . . . . . . Traps Extracted . | . . . . . . . . . . . Installed . | . . . . . . . . . . . Triggered . | . . . . . . . . . . . Machines | -11 -10 -10 -9 -9 -8 -8 -7 -7 -7 -7 ---------- Run | Yrd Mat Min Mat Min Mat Sto Fac Gar Fac Gar Machines Disabled 12 | . 3 . 8 . 1 . . . . . Max in Single Turn 3 | . 1 . 3 . 1 . . . . . Machines Repaired . | . . . . . . . . . . . Machines Dismantled . | . . . . . . . . . . . Machines Sabotaged . | . . . . . . . . . . . Overloaded Fab Kills . | . . . . . . . . . . . Hacking | -11 -10 -10 -9 -9 -8 -8 -7 -7 -7 -7 --------- Run | Yrd Mat Min Mat Min Mat Sto Fac Gar Fac Gar Machines Accessed 48 | . 7 1 9 . 5 12 4 . 6 4 Terminals 31 | . 5 1 7 . 3 8 1 . 2 4 Fabricators . | . . . . . . . . . . . Repair Stations 6 | . 1 . 1 . . 2 1 . 1 . Recycling Units 7 | . 1 . . . 2 2 1 . 1 . Scanalyzers 2 | . . . 1 . . . . . 1 . Garrison Access 2 | . . . . . . . 1 . 1 . Total Hacks 137 | . 22 2 28 . 14 39 9 . 15 8 Successful 70 | . 13 1 16 . 8 21 2 . 7 2 Failed 67 | . 9 1 12 . 6 18 7 . 8 6 Catastrophic 8 | . . . 1 . . 3 1 . 2 1 Database Lockouts . | . . . . . . . . . . . Manual 59 | . 16 1 16 . 6 11 5 . 4 . Terminals 91 | . 18 2 22 . 10 25 2 . 4 8 Fabricators . | . . . . . . . . . . . Repair Stations 19 | . 3 . 4 . . 9 2 . 1 . Recycling Units 14 | . 1 . . . 4 5 2 . 2 . Scanalyzers 8 | . . . 2 . . . . . 6 . Garrison Access 5 | . . . . . . . 3 . 2 . Terminal Hacks 20 | . 4 1 4 . 3 6 . . . 2 Open Door 2 | . . . . . . 2 . . . . Branch Access Points 1 | . . . 1 . . . . . . . Terminal Index 4 | . 1 . 1 . 2 . . . . . Unreport Threat 2 | . 1 . . . . 1 . . . . Locate Traps 1 | . . . . . . 1 . . . . Maintenance Status 1 | . . . 1 . . . . . . . Patrol Status 1 | . 1 . . . . . . . . . Investigation Status 1 | . . 1 . . . . . . . . Hauler Manifests 3 | . 1 . . . . 2 . . . . Registered Components 2 | . . . 1 . 1 . . . . . Garrison Registry 1 | . . . . . . . . . . 1 Patrol Navigation 1 | . . . . . . . . . . 1 Fabricator Hacks . | . . . . . . . . . . . Repair Station Hacks 12 | . 2 . 4 . . 6 . . . . Scan Component 7 | . 1 . 2 . . 4 . . . . Repair 5 | . 1 . 2 . . 2 . . . . Recycling Unit Hacks 8 | . 1 . . . 2 2 1 . 2 . Recycle Component 1 | . . . . . . . . . 1 . Report Inventory 6 | . 1 . . . 1 2 1 . 1 . Retrieve Matter 1 | . . . . . 1 . . . . . Scanalyzer 4 | . . . 1 . . . . . 3 . Insert Component 1 | . . . . . . . . . 1 . Retrieve Study 3 | . . . 1 . . . . . 2 . Garrison Access Hacks 2 | . . . . . . . 1 . 1 . Unlock Access 2 | . . . . . . . 1 . 1 . Unauthorized Hacks 24 | . 6 . 7 . 3 7 . . 1 . Terminals 21 | . 5 . 7 . 3 6 . . . . Track 1 | . 1 . . . . . . . . . Assimilate 3 | . 2 . . . 1 . . . . . Botnet 13 | . 1 . 6 . 1 5 . . . . Operators 4 | . 1 . 1 . 1 1 . . . . Fabricators . | . . . . . . . . . . . Repair Stations 1 | . 1 . . . . . . . . . Mechanics 1 | . 1 . . . . . . . . . Recycling Units 1 | . . . . . . 1 . . . . Recyclers 1 | . . . . . . 1 . . . . Scanalyzers 1 | . . . . . . . . . 1 . Researchers 1 | . . . . . . . . . 1 . Garrison Access . | . . . . . . . . . . . Data Cores Recovered 1 | . 1 . . . . . . . . . Used 1 | . 1 . . . . . . . . . Hacking Detections 44 | . 6 1 9 . 4 10 4 . 6 4 Full Trace Events 10 | . 2 . 1 . . 3 2 . . 2 Feedback Events . | . . . . . . . . . . . Feedback Blocked . | . . . . . . . . . . . Robot Schematics Acquired . | . . . . . . . . . . . Robots Built . | . . . . . . . . . . . Authchips . | . . . . . . . . . . . Time . | . . . . . . . . . . . Total Robot Build Rating . | . . . . . . . . . . . Part Schematics Acquired . | . . . . . . . . . . . Parts Built . | . . . . . . . . . . . Authchips . | . . . . . . . . . . . Time . | . . . . . . . . . . . Total Part Build Rating . | . . . . . . . . . . . Part Studies Acquired 3 | . . . 1 . . . . . 2 . Parts Repaired 5 | . 1 . 2 . . 2 . . . . Time 137 | . 38 . 70 . . 29 . . . . Parts Recycled 1 | . . . . . . . . . 1 . Recycled Matter . | . . . . . . . . . . . Retrieved Matter . | . . . . . . . . . . . Retrieved Components . | . . . . . . . . . . . Parts Scanalyzed 1 | . . . . . . . . . 1 . Part Schematics Acquired . | . . . . . . . . . . . Parts Damaged 1 | . . . . . . . . . 1 . Bothacking | -11 -10 -10 -9 -9 -8 -8 -7 -7 -7 -7 ------------ Run | Yrd Mat Min Mat Min Mat Sto Fac Gar Fac Gar Used RIF Installer . | . . . . . . . . . . . Robots Hacked 3 | . . . 3 . . . . . . . Non-combat 3 | . . . 3 . . . . . . . Combat . | . . . . . . . . . . . Robot Hacks Applied 3 | . . . 3 . . . . . . . parse_system 1 | . . . 1 . . . . . . . no_distress 1 | . . . 1 . . . . . . . find_recycling 1 | . . . 1 . . . . . . . Relay Couplers Released . | . . . . . . . . . . . Fabnet Peak Effective % . | . . . . . . . . . . . Robots Rewired . | . . . . . . . . . . . Allies Hacked . | . . . . . . . . . . . Hacks Repelled . | . . . . . . . . . . . Allies | -11 -10 -10 -9 -9 -8 -8 -7 -7 -7 -7 -------- Run | Yrd Mat Min Mat Min Mat Sto Fac Gar Fac Gar Total Allies 16 | . 1 4 . . 1 10 . . . . Largest Group 10 | . 1 4 3 . 1 10 . . . . Highest-Rated Group 173 | . 10 71 40 . 10 173 . . . . Highest-Rated Ally 31 | . 10 31 16 . 10 29 . . . . Total Orders . | . . . . . . . . . . . Ally Attacks 67 | . . . 4 . . 63 . . . . Total Damage 785 | . . . 45 . . 740 . . . . Kills 8 | . . . . . . 8 . . . . Allies Corrupted . | . . . . . . . . . . . Allies Melted . | . . . . . . . . . . . Intel | -11 -10 -10 -9 -9 -8 -8 -7 -7 -7 -7 ------- Run | Yrd Mat Min Mat Min Mat Sto Fac Gar Fac Gar Active Infowar (turns) 3488 | 33 1331 746 311 76 210 234 170 34 211 132 Optics 759 | . . . . . . 212 170 34 211 132 Terrain 2582 | 33 1331 746 311 76 85 . . . . . Machine Analysis 279 | . . . . . 181 98 . . . . Jamming 2 | . . . . . . . 2 . . . Robot Analysis Total . | . . . . . . . . . . . Derelict Logs Recovered 2 | . . 1 . 1 . . . . . . Drone Launches . | . . . . . . . . . . . Drone Recoveries . | . . . . . . . . . . . Exploration | -11 -10 -10 -9 -9 -8 -8 -7 -7 -7 -7 ------------- Run | Yrd Mat Min Mat Min Mat Sto Fac Gar Fac Gar Turns Passed 3578 | 85 1331 746 349 76 210 234 170 34 211 132 Spaces Moved 3890 | 57 914 527 644 205 411 431 285 52 215 149 Core 39 | 2 . . . . . . . . . 37 Treads . | . . . . . . . . . . . Legs 1498 | 55 914 527 2 . . . . . . . Wheels . | . . . . . . . . . . . Hover . | . . . . . . . . . . . Flight 2353 | . . . 642 205 411 431 285 52 215 112 Fastest Speed 26 | 50 120 120 31 31 26 26 26 26 29 29 Average Speed 69 | 117 120 120 31 31 31 29 29 28 89 51 Slowest Speed 120 | 120 120 120 120 31 114 82 112 29 102 105 Overloaded Moves . | . . . . . . . . . . . Propulsion Burnouts . | . . . . . . . . . . . Robots Hopped 9 | . . . 4 . 4 1 . . . . Potential Cave-ins 3 | . . . 2 . . 1 . . . . Cave-ins Triggered 1 | . . . . . . 1 . . . . Exploration Rate (%) 42 | 4 94 91 54 50 47 63 7 11 8 36 Regions Visited 10 Branch Regions 3 Pre-discovered Areas 1 | . . . . 1 . . . . . . Known Exits Taken 3 | . . . 1 . . . 1 . 1 . Unknown Exits Taken 6 | 1 1 1 . 1 1 1 . . . . Scrap Searched 1 | . . 1 . . . . . . . . Spaces Dug 41 | . . . 24 . 6 8 3 . . . Terrain Destroyed 398 | . . 212 100 32 43 8 3 . . . Melee 13 | . . . . . 2 8 3 . . . Projectile 1 | . . 1 . . . . . . . . AOE 384 | . . 211 100 32 41 . . . . . Terrain Rammed . | . . . . . . . . . . . Walls Destroyed . | . . . . . . . . . . . Machines Disabled . | . . . . . . . . . . . Actions | -11 -10 -10 -9 -9 -8 -8 -7 -7 -7 -7 --------- Run | Yrd Mat Min Mat Min Mat Sto Fac Gar Fac Gar Total 4463 | 67 1048 594 738 209 453 502 358 66 225 203 Wait 191 | . 60 36 44 . 6 37 8 . . . Move 3866 | 56 913 526 636 204 403 428 285 51 215 149 Hop 7 | . . . 3 . 3 1 . . . . Pick Up 16 | 2 7 1 3 . 1 . . . 2 . Fast Attach 37 | 7 1 . 3 . 9 5 10 . 1 1 Attach 11 | . . 1 3 . 2 2 1 . 1 1 Detach 10 | . . . 1 . 1 4 2 . 1 1 Swap 33 | . 10 3 5 1 8 2 3 . 1 . Drop 22 | . 6 2 2 . 2 2 6 . . 2 Fire 129 | 2 50 24 35 4 14 . . . . . Melee 42 | . . . 3 . 4 21 7 2 4 1 Ram 5 | . . . . . . . . . . 5 Kick 2 | . 1 1 . . . . . . . . Crush . | . . . . . . . . . . . Escape Stasis 92 | . . . . . . . 36 13 . 43 Rewire . | . . . . . . . . . . . Trap . | . . . . . . . . . . . Miscellaneous . | . . . . . . . . . . . Route ------- -11/Scrapyard -10/Materials (discovered 5 exits: *Mat x3 / *Min x2) -10/Mines (discovered 2 exits: *Mat x2) -9/Materials (discovered 2 exits: *Min x2) -9/Mines -8/Materials (discovered 3 exits: *Fac x2 / *Sto) -8/Storage -7/Factory -7/Garrison -7/Factory -7/Garrison (discovered 4 exits: [Fac x3] / [Fac]) History --------- Turn | Location | Event 5 | -11/Scrapyard | Discovered new exit (range 15) 86 | -11/Scrapyard | Entered Materials 132 | -10/Materials | Discovered new exit (range 15) 315 | -10/Materials | Build established: Mutant 325 | -10/Materials | Discovered new exit (range 8) 405 | -10/Materials | Discovered new exit (range 11) 490 | -10/Materials | Discovered new exit (range 16) 766 | -10/Materials | Discovered new exit (range 13) 1147 | -10/Materials | Repaired Lgt. Nuclear Core 1417 | -10/Materials | Entered Mines 1452 | -10/Mines | Build established: Scavenger-Mutant 1535 | -10/Mines | Discovered new exit (range 10) 1588 | -10/Mines | Assembled infested the area 1593 | -10/Mines | Assisted by a Guerilla fighting off Assembled 1630 | -10/Mines | Received a Rocket Launcher from a helpful Derelict 1897 | -10/Mines | Received a Mining Laser from a helpful Derelict 1899 | -10/Mines | Discovered new exit (range 5) 1984 | -10/Mines | Assisted by bots powering up and referring to "LRC-V3" 2111 | -10/Mines | Found a damaged Exp. Sensor Array with a note attached 2114 | -10/Mines | Found Prototype Device 2163 | -10/Mines | Entered Materials 2163 | -9/Materials | Accompanied by 3 allies 2163 | -9/Materials | Evolved 2 slots: Propulsion x2 2164 | -9/Materials | Identified exit to Mines 2416 | -9/Materials | Repaired Rocket Launcher 2454 | -9/Materials | Repaired Imp. Terrain Scanner 2477 | -9/Materials | Build established: Sprinter 2512 | -9/Materials | Entered Mines 2548 | -9/Mines | Found a hidden stash of uninstalled traps 2583 | -9/Mines | Learned location of Zion (-7) 2586 | -9/Mines | Discovered new exit (range 8) 2588 | -9/Mines | Entered Materials 2588 | -8/Materials | Evolved 2 slots: Utility x2 2626 | -8/Materials | Discovered new exit (range 15) 2674 | -8/Materials | Discovered new exit (range 15) 2704 | -8/Materials | Lost 4 parts (2n1u1w) 2739 | -8/Materials | Discovered new exit (range 11) 2772 | -8/Materials | System corruption reached 10% 2798 | -8/Materials | Entered Storage 2824 | -8/Storage | Lost 7 parts (1p5n1w) 2843 | -8/Storage | Repaired Lgt. Ion Engine 2877 | -8/Storage | Assisted by bots powering up and referring to "LRC-V3" 2896 | -8/Storage | Crushed by falling debris 2949 | -8/Storage | Repaired VTOL Module 2997 | -8/Storage | Met 01-MTF 3023 | -8/Storage | Discovered new exit (range 16) 3032 | -8/Storage | Entered Factory 3032 | -7/Factory | Evolved 2 slots: Utility x2 3039 | -7/Factory | Lost 9 allies 3202 | -7/Factory | Identified exit to Garrison 3202 | -7/Factory | Entered Garrison 3208 | -7/Garrison | Triggered checkpoint 3234 | -7/Garrison | Discovered new exit (range 6) 3236 | -7/Garrison | Entered Factory 3327 | -7/Factory | Identified Exp. Sensor Array 3447 | -7/Factory | Identified exit to Garrison 3447 | -7/Factory | Entered Garrison 3523 | -7/Garrison | Core integrity fell below 50% 3543 | -7/Garrison | Discovered new exit (range 62) 3543 | -7/Garrison | Discovered new exit (range 73) 3543 | -7/Garrison | Discovered new exit (range 21) 3543 | -7/Garrison | Discovered new exit (range 30) 3561 | -7/Garrison | Core integrity fell below 20% 3579 | -7/Garrison | Destroyed by S-27 Virus with Autogun Last Messages --------------- Downloaded component registry. Downloaded security status. 03547_ Imp. VTOL Module destroyed. 03547_ Dropped Impact Mace. 03547_ Slammed into S-27 Virus. 03549_ Slammed into P-60 Hacker. 03553_ Imp. VTOL Module destroyed. 03556_ Dropped Mic. Nuclear Core+. 03573_ System corrupted: Matter fused (-10). 03573_ Triggered Stasis Trap. 03573_ A bubble of rippling energy engulfs the area. 03573_ Field strength at 94. 03574_ Field strength at 88. 03575_ Field strength at 82. 03576_ Field strength at 76. 03577_ Field strength at 70. 03578_ Field strength at 56. 03579_ Field strength at 45. [Achievement: Back For More] Map ----- +----------------------------------------------------+ | ????????????????????????????????????????????????## | | ????????????????????????????????????????????????# | | ????????????????????????????????????????????????# | | ????????????????????????????????????????????????# | | ????????????????????????????????????????????????# | | ????????????????????????????????????????????????# | | ????????????????????????????????????????????????# | | ????????????????????????????????????????????????# | | ????????????????????????????????????????????????# | | ????????????????????????????????????????????????# | | ????????????????????????????????????????????????# | | ????????????????????????????????????????????????# | | ??????????????????????????????????????????####??# | | ??????????????????????????????????????????# #??# | | #?????????????????????????????????????????# #??# | | ##?????????????????######?????????????????# ##??# | | #?#####??????###### #?????????????????#+##### | | ####!!!#####??#"""## < #??????####???????# + | | #??#" "## #??????#! #???????# ##### | | ##!!!### #??#" "#### #??????#! #???????# #???# | | ######?# #??#" "#??# #??????#! #???????# #???# | | #??????# #??# #??# #??????#! #???????# #???# | | "##??????# #??## ##??# #??????#! #???????# #???# | | "#????####+##### ##### #??????#! #???????# #???# | | "#????# ^^^^^ ######### #???????# #???# | | ##????# ##+#####+##### @^ + #???????# #???# | | ??????# # #???# #???# ^^ sss####???????# #???# | | ??????# ## #???# #???##+##### #??????????# #???# | | ??????# ## ##### #????# #???# #??????????# #???# | | ????### + #????# #???# #??????????# #???# | | ????# " ##########????# #???# #???????#### ##### | | ????# " #?????????????# #???# #???????# + | | ????# " #?????????????# #???# #######?# ######## | | ????### #?????????????# #???# ## #?# #??????# | | ??????# ###???????????# #??## ##""""###+######## | | ??????# #"#???????????# #### ^ | | ??????# "#???????????# + ^ | | ??????# "#???????????###### ^ | | ??????# "#????????????????# ## ## ######## | | ??????# #"#??????????????### ## ## ###????? | | ??????#####??????????????# #????? | | ?????????????????????????# #????? | | ?????????????????????????# #????? | | ?????????????????????????# #????? | | ?????????????????????????### ## ## ###????? | | ?????????????????########### ## ## ######## | | ?????????????????# [ = | | ?????????????????# ^ % " | | ?????????????????# ######## " " ###+### | | ?????????????????# #??????##+### ## ##?# #?# | +----------------------------------------------------+ Best States ------------- Heat Dissipation 34 Energy Generation 16 Energy Capacity 280 Matter Stores 300 Matter Capacity 300 Sight Range 18 Terrain Scan Range 16 Terrain Scan Density 10 Jamming Range 12 Evasion (%) 72 Targeting Accuracy 6 Salvage Targeting 1 Item Schematics ----------------- None Robot Schematics ------------------ None Fabricated ------------ Nothing Repaired ---------- Lgt. Nuclear Core | 30% | -10/Materials Imp. Terrain Scanner | 77% | -9/Materials Lgt. Ion Engine | 15% | -8/Storage VTOL Module | 12% | -8/Storage Studied --------- Flight Unit | -9/Materials | Hacked Cesium-ion Thruster | -7/Factory | Hacked Mic. Nuclear Core | -7/Factory | Hacked Alien Tech Used ----------------- None Achievements -------------- Back For More I Survived The Infestation Watch This! Challenges ------------ None Game ------ Seed DerelictWarlordSpear Manual? 0 Play Time 01:05:30 Cumulative 27.7 hours Start 2026.03.14 @ 21:53:08 End 2026.03.14 @ 22:58:25 Sessions 1 Manual Loads 0 Difficulty Rogue Special Mode None Game No. 50 Rogue 50 Adventurer 0 Explorer 0 Win Type - Total 0 Types 0/0/0/0/0/0/0/0/0/0 Lore% 24 Gallery% 23 Achievement% 21 Wizard Run 0 Options --------- Layout 1 ASCII 0 Keyboard 0 Movement Numpad Keybinds 0 Fullscreen 1 Font 24/Smallcaps Map View 50x35 Zoom Use 0% Tactical HUD 1 Map Filters NONE Filters NONE Steam 1 RUN: 637b99d4-322c-46b9-816b-c5a0f426b3bf